Cogmind - Beta 17 *** ADVENTURER MODE // 2026.06.23 @ 12:02:25 Player: SALZHERZ Result: Destroyed by G-34 Mercenary with Small Laser Performance ------------- Evolutions (1) 500 Regions Visited (2) 400 Robots Destroyed (15) 75 Value Destroyed (355) 355 Prototype IDs (0) 0 Alien Tech Used (0) 0 Bonus (0) 0 TOTAL SCORE: 1330 Bonus ------- None Cogmind --------- Core Integrity 0/400 Matter 37/300 Energy 100/100 System Corruption 0% Temperature Cool (15) Movement Core (700) Ox13 Location -9/Materials Parts ------- > --- POWER (1) -------- (None) > --- PROPULSION (3) --- (None) > --- UTILITY (3) ------ Large Storage Unit Large Storage Unit Visual Processing Unit > --- WEAPON (2) ------- (None) > --- INVENTORY (15) --- Medium Storage Unit Sensor Array Light Assault Rifle Light Assault Rifle Peak State ------------ > --- POWER ------------ Light Ion Engine > --- PROPULSION ------- Aluminum Leg Aluminum Leg Aluminum Leg > --- UTILITY ---------- Small Storage Unit Large Storage Unit Visual Processing Unit > --- WEAPON ----------- Heavy Assault Rifle Grenade Launcher > --- INVENTORY -------- Small Storage Unit Medium Storage Unit Large Storage Unit Sensor Array Light Assault Rifle Light Assault Rifle [Rating: 11] Favorites ----------- Power Light Ion Engine Engine Light Ion Engine Propulsion Aluminum Leg Leg Aluminum Leg Utility Small Storage Unit Device Sensor Array Storage Small Storage Unit Processor Visual Processing Unit Weapon Light Assault Rifle Ballistic Gun Light Assault Rifle Launcher Grenade Launcher Build | -11 -10 -9 ------- Run | Yrd Mat Mat Slots Evolved 2 | . . 2 Power . | . . . Propulsion 1 | . . 1 Utility 1 | . . 1 Weapon . | . . . Parts Attached 15 | 6 2 7 Power 2 | 1 . 1 Engine 2 | 1 . 1 Core . | . . . Reactor . | . . . Propulsion 3 | 2 . 1 Treads . | . . . Leg 3 | 2 . 1 Wheel . | . . . Hover . | . . . Flight . | . . . Utility 6 | 1 2 3 Device 1 | . 1 . Storage 4 | 1 . 3 Processor 1 | . 1 . Hackware . | . . . Protection . | . . . Artifact . | . . . Weapon 4 | 2 . 2 Energy Gun . | . . . Energy Cannon . | . . . Ballistic Gun 3 | 2 . 1 Ballistic Cannon . | . . . Launcher 1 | . . 1 Special Weapon . | . . . Impact Weapon . | . . . Slashing Weapon . | . . . Piercing Weapon . | . . . Special Melee Weapon . | . . . Unidentified Prototypes . | . . . Parts Lost 7 | . . 7 Power 2 | . . 2 Propulsion 3 | . . 3 Utility . | . . . Weapon 2 | . . 2 Highest Loss Streak 6 | . . 6 To Critical Strikes . | . . . Average Backups 1 | . 1 4 Power . | . . . Propulsion . | . . . Utility 1 | . . 2 Weapon . | . . 1 Tool/Special . | . . . Unused Backups 2 | . 1 1 Power . | . . . Propulsion 1 | . 1 . Utility 1 | . . 1 Weapon . | . . . Tool/Special . | . . . Average Slot Usage (%) 84 | . 89 76 Engine 10 | . 14 4 Leg 26 | . 28 23 Device 1 | . 1 . Storage 15 | . 14 18 Processor 5 | . 2 11 Ballistic Gun 22 | . 28 11 Launcher 2 | . . 7 Peak Build Rating 11 | 6 8 11 Average Rating 6 | 4 6 8 On Entrance 4 | . 6 8 Avg Prop Armor Cover (%) 18 | 19 18 14 Naked Turns . | . . . Heaviest Build 49 | 10 11 49 Greatest Support 30 | 3 3 30 Greatest Overweight (x) 13 | 3 3 13 Average Overweight (x) 2 | 1 3 2 Largest Inventory Capacity 15 | 8 8 15 Average Capacity 9 | 7 8 13 Most Carried 6 | 2 2 6 Average Carried 1 | . 1 3 Final Capacity 15 | 8 8 15 Final Carried 4 | . 2 4 Class Distribution -------------------- 94% | Mutant 5% | Scavenger-Mutant Dominant Class ---------------- Mutant | -10/Materials Mutant | -9/Materials Resources | -11 -10 -9 ----------- Run | Yrd Mat Mat Matter Collected 322 | 218 88 16 Remotely . | . . . Salvage Created 275 | . 142 133 Parts 23 | . 8 15 Haulers Intercepted . | . . . Recyclers Shooed 1 | . . 1 Parts Field Recycled . | . . . Retrieved Matter . | . . . Parts Self-Destructed . | . . . Prevented . | . . . Parts Restored . | . . . Kills | -11 -10 -9 ------- Run | Yrd Mat Mat Combat Hostiles Destroyed 11 | . 3 8 Guns 4 | . 3 1 AOE 7 | . . 7 Classes Destroyed 5 | . 2 3 Builder 3 | . . 3 Watcher 1 | . 1 . Swarmer 4 | . . 4 Grunt 4 | . 3 1 Sentry 3 | . . 3 Best Kill Streak 9 | . 2 9 Combat Bots Only 6 | . 2 6 Max Kills in Single Turn 2 | . 1 2 Gunslinging . | . . . Exploded 2 | . . 2 Melee . | . . . Uniques/NPCs Destroyed . | . . . Combat | -11 -10 -9 -------- Run | Yrd Mat Mat Hostile Shots Fired 151 | . 17 134 Missed 53 | . 9 44 Hits 98 | . 8 90 Projectile 98 | . 8 90 Critical Strikes 3 | . . 3 Damage Taken 1168 | . 74 1094 Core 406 | . . 406 Absorbed by Shields . | . . . Ignored by Resistances 343 | . 24 319 Core Remaining (%) 100 | 100 100 . Volleys Fired 48 | . 18 30 Largest 2 | . 2 2 Hottest 53 | . 40 53 Shots Fired 86 | . 36 50 Gun 66 | . 36 30 Cannon . | . . . Launcher 20 | . . 20 Special . | . . . Kinetic 66 | . 36 30 Thermal . | . . . Explosive 20 | . . 20 Electromagnetic . | . . . Robot Hit Streak 24 | . 13 24 Robot Miss Streak 3 | . 2 3 Penetration Max . | . . . Secondary Targets . | . . . Shots Hit Robots 68 | . 28 40 Core Hits 34 | . 10 24 Critical Kills . | . . . Critical Parts Destroyed 1 | . 1 . Critical Strikes 1 | . 1 . Destroy 1 | . 1 . Melee Attacks . | . . . Impact . | . . . Slashing . | . . . Piercing . | . . . Sneak Attacks . | . . . Combat Hostiles . | . . . Follow-up Attacks . | . . . Damage Inflicted 1124 | . 220 904 Guns 423 | . 220 203 Cannons . | . . . Explosions 701 | . . 701 Melee . | . . . Ramming . | . . . Kinetic 423 | . 220 203 Thermal . | . . . Explosive 701 | . . 701 Electromagnetic . | . . . Impact . | . . . Slashing . | . . . Piercing . | . . . Highest Corruption . | . . . Average Corruption . | . . . Corruption Purged . | . . . Corruption Blocked . | . . . Overload Shots . | . . . Overflow Damage 7 | . . 7 Projectiles . | . . . Explosions 7 | . . 7 Melee . | . . . Knockbacks . | . . . Impact . | . . . Kinetic . | . . . Secondary . | . . . Self-Inflicted Damage 159 | . . 159 Shots 9 | . . 9 Rammed . | . . . Targets Rammed . | . . . Kicked . | . . . Crushed . | . . . Highest Temperature 30 | . 1 30 Average Temperature 6 | . 1 6 Received Heat Transfer 618 | . 57 561 Siege Activations . | . . . Martial Activations . | . . . Shielding Activations . | . . . Robots Disrupted . | . . . Combat Hostiles . | . . . Robots Corrupted . | . . . Combat Hostiles . | . . . Parts Fried . | . . . Impact Corruptions . | . . . Robots Melted . | . . . Combat Hostiles . | . . . Parts Melted . | . . . Heat Transferred . | . . . Parts Sabotaged . | . . . Parts Stolen . | . . . Parts Stripped . | . . . Power Chain Reactions . | . . . Alert | -11 -10 -9 ------- Run | Yrd Mat Mat Maximum Alert Level 1 | . . 1 Low Security (%) 92 | 100 100 78 Level 1 7 | . . 21 Level 2 . | . . . Level 3 . | . . . Level 4 . | . . . Level 5 . | . . . High Security . | . . . Max Security . | . . . Peak Influence 220 | . 60 220 Initial . | . . . Average 39 | . 11 102 Influence Increases 392 | . 105 287 Destroy 0b10 Robot/C 220 | . 60 160 Destroy 0b10 Robot/NC 20 | . 5 15 Destroy Leader 72 | . 22 50 Successful Hack 18 | . 18 . Destroy Structure 62 | . . 62 Influence Decreases 278 | . 105 173 Time Decay 215 | . 105 110 Lost Part 63 | . . 63 Squads Dispatched 3 | . 1 2 Investigation 1 | . 1 . Extermination . | . . . Reinforcement 2 | . . 2 Assault . | . . . Garrison . | . . . Intercept . | . . . Searches Triggered . | . . . Construction Impeded 1 | . . 1 Haulers Reinforced . | . . . Active Scanning Responses . | . . . Cargo Convoy Interrupts . | . . . Stealth | -11 -10 -9 --------- Run | Yrd Mat Mat Distress Signals 5 | . . 5 Communications Jammed . | . . . Distress Signals . | . . . Times Spotted 25 | . 4 21 Peak Tracking Total 10 | . 2 10 Tactical Retreats . | . . . Traps | -11 -10 -9 ------- Run | Yrd Mat Mat Traps Triggered 1 | . 1 . Indirectly . | . . . Trap Hack Attempts . | . . . Triggered . | . . . Disarmed . | . . . Reprogrammed . | . . . Reused . | . . . Traps Extracted . | . . . Installed . | . . . Triggered . | . . . Machines | -11 -10 -9 ---------- Run | Yrd Mat Mat Machines Disabled . | . . . Max in Single Turn . | . . . Machines Repaired . | . . . Machines Dismantled . | . . . Machines Sabotaged . | . . . Overloaded Fab Kills . | . . . Hacking | -11 -10 -9 --------- Run | Yrd Mat Mat Machines Accessed 3 | . 3 . Terminals 3 | . 3 . Fabricators . | . . . Repair Stations . | . . . Recycling Units . | . . . Scanalyzers . | . . . Garrison Access . | . . . Total Hacks 7 | . 7 . Successful 5 | . 5 . Failed 2 | . 2 . Catastrophic . | . . . Database Lockouts . | . . . Manual 1 | . 1 . Terminals 7 | . 7 . Fabricators . | . . . Repair Stations . | . . . Recycling Units . | . . . Scanalyzers . | . . . Garrison Access . | . . . Terminal Hacks 5 | . 5 . Record 4 | . 4 . Alert Level 1 | . 1 . Fabricator Hacks . | . . . Repair Station Hacks . | . . . Recycling Unit Hacks . | . . . Scanalyzer . | . . . Garrison Access Hacks . | . . . Unauthorized Hacks . | . . . Terminals . | . . . Fabricators . | . . . Repair Stations . | . . . Recycling Units . | . . . Scanalyzers . | . . . Garrison Access . | . . . Data Cores Recovered . | . . . Used . | . . . Hacking Detections 3 | . 3 . Full Trace Events 1 | . 1 . Feedback Events . | . . . Feedback Blocked . | . . . Robot Schematics Acquired . | . . . Robots Built . | . . . Authchips . | . . . Time . | . . . Total Robot Build Rating . | . . . Part Schematics Acquired . | . . . Parts Built . | . . . Authchips . | . . . Time . | . . . Total Part Build Rating . | . . . Part Studies Acquired . | . . . Parts Repaired . | . . . Time . | . . . Parts Recycled . | . . . Recycled Matter . | . . . Retrieved Matter . | . . . Retrieved Components . | . . . Parts Scanalyzed . | . . . Part Schematics Acquired . | . . . Parts Damaged . | . . . Bothacking | -11 -10 -9 ------------ Run | Yrd Mat Mat Used RIF Installer . | . . . Robots Hacked . | . . . Non-combat . | . . . Combat . | . . . Robot Hacks Applied . | . . . Relay Couplers Released . | . . . Fabnet Peak Effective % . | . . . Robots Rewired . | . . . Allies Hacked . | . . . Hacks Repelled . | . . . Allies | -11 -10 -9 -------- Run | Yrd Mat Mat Total Allies . | . . . Largest Group . | . . . Highest-Rated Group . | . . . Highest-Rated Ally . | . . . Total Orders . | . . . Ally Attacks . | . . . Total Damage . | . . . Kills . | . . . Allies Corrupted . | . . . Allies Melted . | . . . Intel | -11 -10 -9 ------- Run | Yrd Mat Mat Active Infowar (turns) 404 | . 140 264 Optics 344 | . 80 264 Sensors 60 | . 60 . Robot Analysis Total . | . . . Derelict Logs Recovered . | . . . Drone Launches . | . . . Drone Recoveries . | . . . Exploration | -11 -10 -9 ------------- Run | Yrd Mat Mat Turns Passed 815 | 85 466 264 Spaces Moved 348 | 64 207 77 Core 295 | 64 207 24 Treads . | . . . Legs 53 | . . 53 Wheels . | . . . Hover . | . . . Flight . | . . . Fastest Speed 50 | 50 200 190 Average Speed 189 | 116 200 222 Slowest Speed 700 | 200 200 700 Overloaded Moves . | . . . Propulsion Burnouts . | . . . Robots Hopped . | . . . Potential Cave-ins . | . . . Cave-ins Triggered . | . . . Exploration Rate (%) 14 | 3 32 9 Regions Visited 2 Branch Regions . Pre-discovered Areas . | . . . Known Exits Taken . | . . . Unknown Exits Taken 2 | 1 1 . Scrap Searched . | . . . Spaces Dug . | . . . Terrain Destroyed 63 | . . 63 Melee . | . . . Projectile . | . . . AOE 63 | . . 63 Terrain Rammed . | . . . Walls Destroyed . | . . . Machines Disabled . | . . . Actions | -11 -10 -9 --------- Run | Yrd Mat Mat Total 431 | 75 231 125 Wait . | . . . Move 346 | 63 206 77 Hop . | . . . Pick Up 18 | 6 4 8 Fast Attach . | . . . Attach 10 | 6 1 3 Detach . | . . . Swap 5 | . 1 4 Drop 4 | . 1 3 Fire 48 | . 18 30 Melee . | . . . Ram . | . . . Kick . | . . . Crush . | . . . Escape Stasis . | . . . Rewire . | . . . Trap . | . . . Miscellaneous . | . . . Route ------- -11/Scrapyard -10/Materials -9/Materials History --------- Turn | Location | Event 4 | -11/Scrapyard | Discovered new exit (range 13) 86 | -11/Scrapyard | Entered Materials 316 | -10/Materials | Build established: Mutant 512 | -10/Materials | Discovered new exit (range 4) 552 | -10/Materials | Entered another Materials area 552 | -9/Materials | Evolved 2 slots: Propulsion x1, Utility x1 788 | -9/Materials | Core integrity fell below 50% 807 | -9/Materials | Core integrity fell below 20% 816 | -9/Materials | Destroyed by G-34 Mercenary with Small Laser Last Messages --------------- 00781_ Aluminum Leg destroyed. 00781_ Critical hit (Burn: +37). 00782_ U-05 Engineer builds a Wall. 00783_ Critical hit (Burn: +37). 00786_ Lgt. Ion Engine destroyed. 00786_ U-05 Engineer builds a Wall. 00789_ W-16 Scout distress signal alerts nearby ally. 00790_ U-05 Engineer lays Concrete. 00792_ G-34 Mercenary destroyed. 00793_ U-05 Engineer builds a Door. 00797_ U-05 Engineer lays Concrete. 00798_ The unstable cave ceiling collapses. 00798_ U-05 Engineer lays Concrete. 00800_ W-16 Scout distress signal alerts nearby ally. 00800_ U-05 Engineer lays Concrete. 00801_ U-05 Engineer destroyed. 00803_ Aluminum Leg destroyed. 00815_ Critical hit (Burn: +37). Map ----- +----------------------------------------------------+ | ???????????????????????????????????????????????? | | ???????????????????????????????????????????????? | | ???????????????????????????????????????????????? | | ???????????????????????????????????????????????? | | ???????????????????????????????????????????????? | | ??????????????? ??????????????????????????????? | | ??????????????? ??????????????????????????????? | | ??????????????# ??????????????????????????????? | | ??????????????# ??????????????????????????????? | | ??????????????# ??????????????????????????????? | | ??????????????# """???????????????????????????? | | ??????????????# """???????????????????????????? | | ??????????????# """???????????????????????????? | | ???????? ???# ?????#########?????????????? | | ???????? ""?## ????# # # ??????????????? | | ??????????"S # ##### ""???T" +???????? | | ??????????? # w """? u #???????? | | ???????????? + ! w %+ """ #???????? | | ?????????????#|% # ?????????? | | ?????????????# ## ! # =!??????????? | | ?????????????###+#### ###+| #? =???????????? | | ?????????????# # = * % # ??????????????? | | ?????????????# gYg[ = #????????????????? | | ?????????????# # != #????????????????? | | ???????######## #????????????????? | | ????# Y @ #????????????????? | | ?????# # g ##????????????????? | | ?????# ## # * # ########?????????????? | | ?????# ??### =%! #?????????????? | | ?????# ??### ! #?????????????? | | ?????# = ???# # aw #?????????????? | | ?????# ????## ### ########?????????????? | | ?????# ?????## a #????????????????????? | | ?????####+##?????## * !#????????????????????? | | ??????? ####### #????????????????????? | | ??????? #????????????????????? | | ??????? #????????????????????? | | ??????? !##????????????????????? | | ??????? ###"### ####?????????????????????? | | ?????????+???# ??# #????????????????????????? | | ?????????????# ???# #????????????????????????? | | ?????????????#????# #????????????????????????? | | ??????????????????# #????????????????????????? | | ??????????????????# #????????????????????????? | | ??????????????????# #????????????????????????? | | ??????????????????# #????????????????????????? | | ??????????????????# #????????????????????????? | | ??????????????????# ?????????????????????????? | | ??????????????????# ?????????????????????????? | | ???????????????????? ??????????????????????????? | +----------------------------------------------------+ Best States ------------- Heat Dissipation 28 Energy Generation 10 Energy Capacity 125 Matter Stores 300 Matter Capacity 300 Sight Range 18 Robot Scan Range 14 Terrain Scan Density 10 Resistance: KI 20 Resistance: TH 20 Resistance: EX 20 Resistance: EM 20 Resistance: I 20 Resistance: S 20 Resistance: P 20 Evasion (%) 50 Offensive Hacking 10 Item Schematics ----------------- None Robot Schematics ------------------ None Fabricated ------------ Nothing Repaired ---------- Nothing Studied --------- None Alien Tech Used ----------------- None Achievements -------------- DATA ERROR: Steam Global Achievement% Organ Harvest Resistances Are Futile Spot Them First Challenges ------------ None Game ------ Seed TripodGodAirjet Manual? 0 Play Time 00:16:58 Cumulative 2.1 hours Start 2026.06.23 @ 11:45:10 End 2026.06.23 @ 12:02:25 Sessions 1 Manual Loads 0 Difficulty Adventurer Special Mode None Game No. 14 Rogue 9 Adventurer 5 Explorer 0 Win Type - Total 0 Types 0/0/0/0/0/0/0/0/0/0 Lore% 1 Gallery% 4 Achievement% 3 Wizard Run 0 Options --------- Layout 1 ASCII 0 Keyboard 0 Movement Mouse Keybinds 0 Fullscreen 1 Font 48/Crisp Map View 50x35 Zoom Use 0% Tactical HUD 1 Map Filters NONE Filters NONE Steam 1 RUN: 6cabf057-ebc7-42bb-af7f-b63f5b84fddf